Cogmind - Beta 14 @@@ ROGUE MODE // 2024.09.17 @ 11:20:00 Player: Minty Result: Destroyed by Y-45 Defender with Beam Rifle Performance ------------- Evolutions (0) 0 Regions Visited (2) 400 Robots Destroyed (17) 85 Value Destroyed (183) 183 Prototype IDs (0) 0 Alien Tech Used (0) 0 Bonus (0) 0 TOTAL SCORE: 668 Bonus ------- None Cogmind --------- Core Integrity 0/250 Matter 300/300 Energy 98/100 System Corruption 1% Temperature Cool (9) Movement Rolling (80) Location -10/Mines Parts ------- > --- POWER (1) -------- (None) > --- PROPULSION (2) --- Wheel Wheel > --- UTILITY (2) ------ Small Storage Unit Machine Analyzer > --- WEAPON (2) ------- Medium Laser Makeshift Hammer > --- INVENTORY (8) ---- Light Treads Light Treads Large Storage Unit Small Matter Pod (50) Sensor Array ECM Suite Hacking Suite EM Pulse Gun Peak State ------------ > --- POWER ------------ Light Ion Engine > --- PROPULSION ------- Wheel Wheel > --- UTILITY ---------- Small Storage Unit Machine Analyzer > --- WEAPON ----------- Medium Laser Makeshift Hammer > --- INVENTORY -------- Light Treads Light Treads Large Storage Unit Small Matter Pod Sensor Array ECM Suite Hacking Suite EM Pulse Gun [Rating: 13] Favorites ----------- Power Light Ion Engine Engine Light Ion Engine Propulsion Wheel Leg Aluminum Leg Wheel Wheel Utility Small Storage Unit Storage Small Storage Unit Processor Machine Analyzer Weapon Medium Laser Energy Gun Medium Laser Ballistic Gun Light Assault Rifle Impact Weapon Makeshift Hammer Build | -11 -10 -10 ------- Run | Yrd Mat Min Slots Evolved . | . . . Power . | . . . Propulsion . | . . . Utility . | . . . Weapon . | . . . Parts Attached 9 | . 6 3 Power 1 | . 1 . Engine 1 | . 1 . Core . | . . . Reactor . | . . . Propulsion 4 | . 4 . Treads . | . . . Leg . | . . . Wheel 4 | . 4 . Hover . | . . . Flight . | . . . Utility 2 | . . 2 Device . | . . . Storage 1 | . . 1 Processor 1 | . . 1 Hackware . | . . . Protection . | . . . Artifact . | . . . Weapon 2 | . 1 1 Energy Gun . | . . . Energy Cannon . | . . . Ballistic Gun 1 | . 1 . Ballistic Cannon . | . . . Launcher . | . . . Special Weapon . | . . . Impact Weapon 1 | . . 1 Slashing Weapon . | . . . Piercing Weapon . | . . . Special Melee Weapon . | . . . Unidentified Prototypes . | . . . Corrupted Parts 1 | . 1 . System Corruption 1 | . 1 . Parts Lost 3 | . 2 1 Power 1 | . . 1 Propulsion 1 | . 1 . Utility . | . . . Weapon 1 | . 1 . Highest Loss Streak 2 | . 2 1 To Critical Strikes . | . . . Average Slot Usage (%) 88 | . 82 96 Engine 13 | . 14 13 Leg 8 | . 14 . Wheel 19 | . 13 28 Storage 14 | . 14 14 Processor 4 | . . 11 Energy Gun 20 | . 24 14 Ballistic Gun 3 | . 1 5 Impact Weapon 3 | . . 8 Peak Build Rating 13 | . 7 13 Average Rating 7 | . 5 11 On Entrance 6 | 6 6 7 Naked Turns . | . . . Heaviest Build 13 | 12 12 13 Greatest Support 20 | 20 20 20 Greatest Overweight (x) . | . . . Average Overweight (x) . | . . . Largest Inventory Capacity 8 | . 8 8 Average Capacity 8 | . 8 8 Most Carried 8 | . 8 8 Average Carried 7 | . 7 7 Final Capacity 8 | 8 8 8 Final Carried 8 | 6 8 8 Class Distribution -------------------- 90% | Mutant 9% | Scavenger-Mutant Dominant Class ---------------- Mutant | -10/Materials Mutant | -10/Mines Resources | -11 -10 -10 ----------- Run | Yrd Mat Min Matter Collected 335 | 200 91 44 Remotely . | . . . Salvage Created 399 | . 310 89 Parts 29 | . 24 5 Haulers Intercepted 1 | . 1 . Recyclers Shooed 1 | . 1 . Parts Field Recycled . | . . . Retrieved Matter . | . . . Parts Self-Destructed . | . . . Prevented . | . . . Kills | -11 -10 -10 ------- Run | Yrd Mat Min Combat Hostiles Destroyed 10 | . 7 3 Guns 10 | . 7 3 Classes Destroyed 8 | . 7 1 Worker 1 | . 1 . Builder 2 | . 1 1 Tunneler 1 | . . 1 Hauler 1 | . 1 . Mechanic 1 | . 1 . Watcher 1 | . 1 . Swarmer 9 | . 6 3 Grunt 1 | . 1 . Best Kill Streak 5 | . 5 2 Combat Bots Only 5 | . 5 2 Max Kills in Single Turn 2 | . 2 2 Gunslinging 1 | . . 1 Exploded . | . . . Melee . | . . . Uniques/NPCs Destroyed . | . . . Combat | -11 -10 -10 -------- Run | Yrd Mat Min Hostile Shots Fired 104 | . 55 49 Missed 33 | . 21 12 Damage Taken 671 | . 265 406 Core 262 | . 69 193 Absorbed by Shields . | . . . Core Remaining (%) 100 | 100 . . Volleys Fired 47 | . 32 15 Largest 2 | . 2 2 Hottest 90 | . 90 70 Shots Fired 77 | . 49 28 Gun 77 | . 49 28 Cannon . | . . . Launcher . | . . . Special . | . . . Kinetic 15 | . 1 14 Thermal 46 | . 32 14 Explosive . | . . . Electromagnetic 16 | . 16 . Robot Hit Streak 13 | . 13 4 Robot Miss Streak 7 | . 6 7 Penetration Max . | . . . Secondary Targets 3 | . 2 1 Max Gunslinging Chain 1 | . 1 1 Shots Hit Robots 43 | . 29 14 Core Hits 17 | . 14 3 Critical Kills . | . . . Critical Parts Destroyed 1 | . . 1 Critical Strikes 5 | . 2 3 Burn 3 | . 1 2 Corrupt 1 | . 1 . Smash 1 | . . 1 Melee Attacks 8 | . . 8 Impact 8 | . . 8 Slashing . | . . . Piercing . | . . . Sneak Attacks 2 | . . 2 Combat Hostiles . | . . . Follow-up Attacks . | . . . Damage Inflicted 725 | . 381 344 Guns 508 | . 381 127 Cannons . | . . . Explosions . | . . . Melee 217 | . . 217 Ramming . | . . . Kinetic 54 | . . 54 Thermal 335 | . 262 73 Explosive . | . . . Electromagnetic 119 | . 119 . Impact 217 | . . 217 Slashing . | . . . Piercing . | . . . Highest Corruption 1 | . 1 1 Average Corruption 1 | . 1 1 Corruption Purged . | . . . Corruption Blocked . | . . . Effects 3 | . . 3 Message Errors 1 | . . 1 Data Loss (minor) 1 | . . 1 Weapon Failures 1 | . . 1 Overload Shots . | . . . Overflow Damage 150 | . . 150 Projectiles . | . . . Explosions . | . . . Melee 150 | . . 150 Knockbacks . | . . . Impact . | . . . Kinetic . | . . . Secondary . | . . . Self-Inflicted Damage . | . . . Shots . | . . . Rammed . | . . . Targets Rammed . | . . . Kicked . | . . . Crushed . | . . . Highest Temperature 280 | . 280 130 Average Temperature 92 | . 105 63 Received Heat Transfer 78 | . 6 72 Siege Activations . | . . . Robots Corrupted 3 | . 1 2 Combat Hostiles . | . . . Parts Fried 6 | . 2 4 Impact Corruptions 6 | . . 6 Robots Melted . | . . . Combat Hostiles . | . . . Parts Melted 1 | . . 1 Heat Transferred 1221 | . 851 370 Parts Sabotaged . | . . . Parts Stolen . | . . . Parts Stripped . | . . . Power Chain Reactions . | . . . Alert | -11 -10 -10 ------- Run | Yrd Mat Min Peak Influence 245 | . 245 180 Initial 95 | . . 95 Average 117 | . 94 154 Maximum Alert Level 1 | . 1 . Low Security (%) 85 | . 76 100 Level 1 14 | . 23 . Level 2 . | . . . Level 3 . | . . . Level 4 . | . . . Level 5 . | . . . High Security . | . . . Max Security . | . . . Squads Dispatched 2 | . 2 . Investigation 2 | . 2 . Extermination . | . . . Reinforcement . | . . . Assault . | . . . Garrison . | . . . Intercept . | . . . Searches Triggered . | . . . Construction Impeded . | . . . Haulers Reinforced . | . . . Active Scanning Responses . | . . . Cargo Convoy Interrupts . | . . . Stealth | -11 -10 -10 --------- Run | Yrd Mat Min Distress Signals 1 | . 1 . Communications Jammed . | . . . Distress Signals . | . . . Times Spotted 18 | . 13 5 Peak Tracking Total 7 | . 7 3 Tactical Retreats . | . . . Traps | -11 -10 -10 ------- Run | Yrd Mat Min Traps Triggered . | . . . Indirectly . | . . . Trap Hack Attempts . | . . . Triggered . | . . . Disarmed . | . . . Reprogrammed 8 | . 8 . Reused . | . . . Traps Extracted . | . . . Installed . | . . . Triggered . | . . . Machines | -11 -10 -10 ---------- Run | Yrd Mat Min Machines Disabled 1 | . 1 . Max in Single Turn 1 | . 1 . Machines Repaired . | . . . Machines Dismantled . | . . . Machines Sabotaged . | . . . Overloaded Fab Kills . | . . . Hacking | -11 -10 -10 --------- Run | Yrd Mat Min Machines Accessed 3 | . 3 . Terminals 3 | . 3 . Fabricators . | . . . Repair Stations . | . . . Recycling Units . | . . . Scanalyzers . | . . . Garrison Access . | . . . Total Hacks 12 | . 12 . Successful 7 | . 7 . Failed 5 | . 5 . Catastrophic 1 | . 1 . Database Lockouts . | . . . Manual 8 | . 8 . Terminals 12 | . 12 . Fabricators . | . . . Repair Stations . | . . . Recycling Units . | . . . Scanalyzers . | . . . Garrison Access . | . . . Terminal Hacks 4 | . 4 . Branch Access Points 1 | . 1 . Locate Traps 1 | . 1 . Reprogram Traps 2 | . 2 . Fabricator Hacks . | . . . Repair Station Hacks . | . . . Recycling Unit Hacks . | . . . Scanalyzer . | . . . Garrison Access Hacks . | . . . Unauthorized Hacks 3 | . 3 . Terminals 3 | . 3 . Assimilate 1 | . 1 . Operators 1 | . 1 . Search 1 | . 1 . Fabricators . | . . . Repair Stations . | . . . Recycling Units . | . . . Scanalyzers . | . . . Garrison Access . | . . . Data Cores Recovered . | . . . Used . | . . . Hacking Detections 3 | . 3 . Full Trace Events 1 | . 1 . Feedback Events . | . . . Feedback Blocked . | . . . Robot Schematics Acquired . | . . . Robots Built . | . . . Authchips . | . . . Time . | . . . Total Robot Build Rating . | . . . Part Schematics Acquired . | . . . Parts Built . | . . . Authchips . | . . . Time . | . . . Total Part Build Rating . | . . . Parts Repaired . | . . . Time . | . . . Parts Recycled . | . . . Recycled Matter . | . . . Retrieved Matter . | . . . Retrieved Components . | . . . Parts Scanalyzed . | . . . Part Schematics Acquired . | . . . Parts Damaged . | . . . Bothacking | -11 -10 -10 ------------ Run | Yrd Mat Min Used RIF Installer . | . . . Robots Hacked . | . . . Non-combat . | . . . Combat . | . . . Robot Hacks Applied . | . . . Relay Couplers Released . | . . . Fabnet Peak Effective % . | . . . Robots Rewired . | . . . Allies Hacked . | . . . Hacks Repelled . | . . . Allies | -11 -10 -10 -------- Run | Yrd Mat Min Total Allies 1 | . 1 . Largest Group 1 | . 1 1 Highest-Rated Group 10 | . 10 10 Highest-Rated Ally 10 | . 10 10 Total Orders . | . . . Ally Attacks . | . . . Total Damage . | . . . Kills . | . . . Allies Corrupted . | . . . Allies Melted . | . . . Intel | -11 -10 -10 ------- Run | Yrd Mat Min Robot Analysis Total . | . . . Derelict Logs Recovered . | . . . Drone Launches . | . . . Drone Recoveries . | . . . Exploration | -11 -10 -10 ------------- Run | Yrd Mat Min Turns Passed 566 | . 348 218 Spaces Moved 404 | 1 219 184 Core . | . . . Treads . | . . . Legs 131 | 1 130 . Wheels 273 | . 89 184 Hover . | . . . Flight . | . . . Fastest Speed 80 | 120 80 80 Average Speed 92 | 120 103 80 Slowest Speed 120 | 120 120 80 Overloaded Moves . | . . . Propulsion Burnouts . | . . . Robots Hopped . | . . . Cave-ins Triggered . | . . . Exploration Rate (%) 29 | 2 37 49 Regions Visited 2 Branch Regions 1 Pre-discovered Areas . | . . . Known Exits Taken 1 | . 1 . Unknown Exits Taken 1 | 1 . . Scrap Searched . | . . . Spaces Dug . | . . . Terrain Destroyed . | . . . Melee . | . . . Projectile . | . . . AOE . | . . . Terrain Rammed . | . . . Walls Destroyed . | . . . Machines Disabled . | . . . Actions | -11 -10 -10 --------- Run | Yrd Mat Min Total 513 | . 292 221 Wait 33 | . 25 8 Move 402 | . 218 184 Hop . | . . . Pick Up 7 | . 6 1 Fast Attach 2 | . 1 1 Attach 4 | . 3 1 Detach . | . . . Swap 3 | . 2 1 Drop 7 | . 5 2 Fire 47 | . 32 15 Melee 8 | . . 8 Ram . | . . . Kick . | . . . Crush . | . . . Escape Stasis . | . . . Rewire . | . . . Trap . | . . . Miscellaneous . | . . . Route ------- -11/Scrapyard -10/Materials (discovered 2 exits: *Min x2) -10/Mines (discovered 1 exit: [*Mat]) History --------- Turn | Location | Event 1 | -11/Scrapyard | Discovered new exit (range 0) 1 | -11/Scrapyard | Entered Materials 122 | -10/Materials | Discovered new exit (range 9) 157 | -10/Materials | Discovered new exit (range 13) 224 | -10/Materials | Identified exit to Mines 332 | -10/Materials | Build established: Mutant 349 | -10/Materials | Entered Mines 349 | -10/Mines | Accompanied by 1 ally 380 | -10/Mines | Core integrity fell below 50% 395 | -10/Mines | Discovered new exit (range 11) 433 | -10/Mines | A weapon hastily lodged in a ceiling crevice suddenly fell to the ground 563 | -10/Mines | Core integrity fell below 20% 567 | -10/Mines | Destroyed by Y-45 Defender with Beam Rifle Last Messages --------------- 00444_ Destroyed Welding Torch. 00444_ Destroyed Lgt. Ion Engine. 00444_ Destroyed Terrain Scan Processor. 00444_ U-05 Engineer system corrupted by crushing effect. 00445_ U-05 Engineer system terminally corrupted. 00445_ Wheel fried. 00446_ Acquired 12 matter. 00448_ K-01 Serf collects debris. 00465_ Dropped Sml. Storage Unit. 00476_ Acquired 10 matter. 00482_ K-01 Serf collects debris. 00499_ Sneak attack on T-07 Excavator. 00499_ Destroyed Wheel. 00499_ T-07 Excavator system corrupted by crushing effect. 00500_ T-07 Excavator system terminally corrupted. 00500_ Imp. Terrain Scanner fried. 00500_ Seismic Detector fried. 00547_ System corrupted: Component data lost. 00554_ Y-45 Defender suffers critical hit (Burn). 00554_ Lgt. Ion Engine destroyed. Map ----- +----------------------------------------------------+ | ???????????????????????????## ##??? | | ????????????????????????????## ##?? | | ?????????????????????????????## #?? | | ??????????????????????????????### #?? | | ????????????????????????????????## ##?? | | ?????????????????????????????????# ###??? | | ?????????????????????????????????# ###### | | ?????????????????????????????????# % | | ?????????????????????????????????# | | ?????????????????????????????????######## | | ????????????????????????????????????????? | | ???????????????????????????? ???????????? | | ?????????????????????????? ??????????? | | ?????????????????????????? ?????????? | | ?????????????????????????? ?????????? | | ??????????????????????????? ????????? | | ????????????????????????????# #???????? | | ?????????????????????????????# #??????? | | ?????????????????????????????# #####?? | | ?????????????????????????????# ### | | ?????????????????????????????# # | | ?????????????????????????????# | | ?????????????????######???????# % | | ????????????????## ##??????## # | | ???????????????## ##??????# ### | | ??????????????##@ ##?????## ##?? | | ?????????????## ## ##?????## ##?? | | ?????????????# #### ##????## ### | | ????????##[??# ##??## ###??# | | ????????#"/! # ##????## ##?# | | ????????# /Y #??????## #?## ### | | ????????# Y #???????## #??#####?## | | ????????#"!! # #???????## ##????????## | | ????????##!!## ???????# #????????## | | ?????????###? ??????# #????##### | | ????????????? ####?????# #???## | | ???????????? ##????????# ##### | | ???????????? ##???????### # | | ??????????? #???????## ## | | ???????????? ????????# ##? | | ???????????? #???????# """ ##?? | | ????????????##??????# """ ## ##??? | | ?????????????????? """ ######???? | | ????????????????# #????????? | | ??????????????? ##????????? | | ?????????????? #?????????? | | ?????????????? ## ##?????????? | | ?????????????? #?## ####??????????? | | ??????????????? #???###??????????????? | | ??????????????? #?????????????????????? | +----------------------------------------------------+ Best States ------------- Heat Dissipation 25 Energy Generation 10 Energy Capacity 125 Matter Stores 300 Matter Capacity 300 Sight Range 16 Terrain Scan Density 10 Evasion (%) 55 Item Schematics ----------------- None Robot Schematics ------------------ None Fabricated ------------ Nothing Alien Tech Used ----------------- None Achievements -------------- None Challenges ------------ None Game ------ Seed PhasingZioniteTerrabomb Manual? 0 Play Time 00:10:40 Cumulative 937.2 hours Start 2024.09.17 @ 10:38:48 End 2024.09.17 @ 11:20:00 Sessions 1 Manual Loads 0 Difficulty Rogue Special Mode None Game No. 1139 Rogue 859 Adventurer 124 Explorer 156 Win Type - Total 40 Types 28/0/8/2/1/0/0/1/0 Lore% 82 Gallery% 90 Achievement% 78 Wizard Run 0 Options --------- Layout 0 ASCII 0 Keyboard 1 Movement Numpad Keybinds 0 Fullscreen 2 Font 18/X11 Map View 76x50 Zoom Use 4% Tactical HUD 1 Map Filters NONE Filters NONE Steam 1 RUN: 499e1d4e-3631-4d24-b72f-6ccb2c37b370